Cogmind - Beta 9.6 @@@ ROGUE MODE // 2020.05.21 @ 18:10:16 Player: Overmind Result: Self-destructed Performance ------------- Evolutions (1) 500 Regions Visited (4) 800 Robots Destroyed (17) 85 Value Destroyed (466) 466 Prototype IDs (0) 0 Alien Tech Used (0) 0 Bonus (0) 0 TOTAL SCORE: 1851 Bonus ------- None Cogmind --------- Core Integrity 376/400 Matter 168/300 Energy 100/100 System Corruption 0% Temperature Cool (0) Movement Flying (120) Ox1 Location -9/Storage Parts ------- > --- POWER (1) -------- (None) > --- PROPULSION (3) --- Flight Unit > --- UTILITY (3) ------ Signal Interpreter ECM Suite Propulsion Shielding > --- WEAPON (2) ------- Rocket Launcher > --- INVENTORY (4) ---- Grenade Launcher Peak State ------------ > --- POWER ------------ Light Ion Engine > --- PROPULSION ------- Flight Unit Flight Unit > --- UTILITY ---------- Signal Interpreter ECM Suite Propulsion Shielding > --- WEAPON ----------- Rocket Launcher > --- INVENTORY -------- Grenade Launcher [Rating: 8] Favorites ----------- Power Light Ion Engine Engine Light Ion Engine Propulsion Hover Unit Leg Aluminum Leg Hover Unit Hover Unit Flight Unit Flight Unit Utility Signal Interpreter Device ECM Suite Processor Signal Interpreter Protection Propulsion Shielding Weapon EM Pulse Gun Energy Gun EM Pulse Gun Ballistic Gun Light Assault Rifle Launcher Rocket Launcher Slashing Weapon Mining Claw Build | -11 -10 -10 -9 -9 ------- Run | Scr Mat Min Mat Sto Slots Evolved 2 | . . . 2 . Power . | . . . . . Propulsion 1 | . . . 1 . Utility 1 | . . . 1 . Weapon . | . . . . . Parts Attached 22 | 5 9 4 2 2 Power 3 | 1 1 1 . . Engine 3 | 1 1 1 . . Core . | . . . . . Reactor . | . . . . . Propulsion 9 | 2 3 3 1 . Treads . | . . . . . Leg 3 | 2 . 1 . . Wheel . | . . . . . Hover 3 | . 3 . . . Flight 3 | . . 2 1 . Utility 5 | . 4 . 1 . Device 3 | . 2 . 1 . Storage . | . . . . . Processor 1 | . 1 . . . Hackware . | . . . . . Protection 1 | . 1 . . . Artifact . | . . . . . Weapon 5 | 2 1 . . 2 Energy Gun 1 | 1 . . . . Energy Cannon . | . . . . . Ballistic Gun 1 | 1 . . . . Ballistic Cannon . | . . . . . Launcher 2 | . . . . 2 Special Weapon . | . . . . . Impact Weapon . | . . . . . Slashing Weapon 1 | . 1 . . . Piercing Weapon . | . . . . . Special Melee Weapon . | . . . . . Unidentified Prototypes . | . . . . . Parts Lost 8 | . 1 4 1 2 Power 2 | . . 1 . 1 Propulsion 3 | . . 2 . 1 Utility 1 | . 1 . . . Weapon 2 | . . 1 1 . Highest Loss Streak 4 | . 1 4 1 2 Average Slot Usage (%) 80 | . 75 87 73 71 Engine 12 | . 13 10 11 11 Leg 7 | . 16 2 . . Hover 13 | . 11 20 . . Flight 3 | . . 1 22 22 Device 2 | . 1 . 11 11 Processor 9 | . 3 14 11 11 Protection 7 | . . 14 11 11 Energy Gun 9 | . 14 9 . . Ballistic Gun 5 | . 13 . . . Slashing Weapon 7 | . . 14 7 . Naked Turns . | . . . . . Heaviest Build 9 | 6 8 8 7 9 Greatest Support 20 | 20 20 12 8 8 Greatest Overweight (x) 1 | . . . . 1 Average Overweight (x) . | . . . . . Largest Inventory Capacity 4 | 4 4 4 4 4 Average Capacity 4 | 4 4 4 4 4 Most Carried 4 | 2 4 4 3 2 Average Carried 2 | . 1 2 2 1 Final Capacity 4 | 4 4 4 4 4 Final Carried 3 | . 2 3 2 1 Class Distribution -------------------- 100% | Mutant Dominant Class ---------------- Mutant | -10/Materials Mutant | -10/Mines Mutant | -9/Materials Mutant | -9/Storage Resources | -11 -10 -10 -9 -9 ----------- Run | Scr Mat Min Mat Sto Matter Collected 395 | 157 198 40 . . Remotely . | . . . . . Salvage Created 615 | . 392 180 . 43 Parts 37 | . 23 9 . 5 Haulers Intercepted 1 | . 1 . . . Recyclers Shooed . | . . . . . Parts Field Recycled . | . . . . . Retrieved Matter . | . . . . . Parts Self-Destructed . | . . . . . Prevented . | . . . . . Kills | -11 -10 -10 -9 -9 ------- Run | Scr Mat Min Mat Sto Combat Hostiles Destroyed 13 | . 7 4 . 2 Melee 6 | . 2 4 . . Guns 5 | . 5 . . . AOE 2 | . . . . 2 Classes Destroyed 5 | . 3 2 . . Hauler 1 | . 1 . . . Recycler 1 | . . 1 . . Operator 2 | . 1 . . 1 Swarmer 3 | . . 3 . . Grunt 10 | . 7 1 . 2 Best Kill Streak 4 | . 3 4 . 3 Combat Bots Only 3 | . 2 3 . 2 Max Kills in Single Turn 1 | . 1 1 . 1 Gunslinging . | . . . . . Exploded 1 | . . . . 1 Melee 1 | . 1 1 . . Uniques/NPCs Destroyed . | . . . . . Combat | -11 -10 -10 -9 -9 -------- Run | Scr Mat Min Mat Sto Damage Taken 649 | . 170 281 31 167 Core 145 | . 11 110 . 24 Absorbed by Shields . | . . . . . Core Remaining (%) 75 | 100 . 51 . . Volleys Fired 31 | . 21 . . 10 Largest 2 | . 2 . . 1 Hottest 60 | . 60 . . 33 Shots Fired 51 | . 41 . . 10 Gun 41 | . 41 . . . Cannon . | . . . . . Launcher 10 | . . . . 10 Special . | . . . . . Kinetic 20 | . 20 . . . Thermal . | . . . . . Explosive 10 | . . . . 10 Electromagnetic 21 | . 21 . . . Robot Hit Streak 14 | . 14 . . 3 Robot Miss Streak 3 | . 3 . . 1 Penetration Max . | . . . . . Secondary Targets 1 | . 1 . . . Max Gunslinging Chain 1 | . 1 . . . Shots Hit Robots 54 | . 32 14 . 8 Core Hits 29 | . 15 6 . 8 Critical Hits . | . . . . . Critical Kills . | . . . . . Critical Parts Destroyed . | . . . . . Melee Attacks 24 | . 4 20 . . Impact . | . . . . . Slashing 24 | . 4 20 . . Piercing . | . . . . . Sneak Attacks 1 | . . 1 . . Combat Hostiles . | . . . . . Follow-up Attacks . | . . . . . Damage Inflicted 1084 | . 391 388 . 305 Guns 324 | . 324 . . . Cannons . | . . . . . Explosions 305 | . . . . 305 Melee 455 | . 67 388 . . Ramming . | . . . . . Kinetic 108 | . 108 . . . Thermal . | . . . . . Explosive 305 | . . . . 305 Electromagnetic 216 | . 216 . . . Impact . | . . . . . Slashing 455 | . 67 388 . . Piercing . | . . . . . Highest Corruption . | . . . . . Average Corruption . | . . . . . Corruption Purged . | . . . . . Overload Shots . | . . . . . Overflow Damage 44 | . . 7 . 37 Projectiles . | . . . . . Explosions 37 | . . . . 37 Melee 7 | . . 7 . . Knockbacks . | . . . . . Impact . | . . . . . Kinetic . | . . . . . Secondary . | . . . . . Self-Inflicted Damage 68 | . . . . 68 Shots 3 | . . . . 3 Rammed . | . . . . . Targets Rammed . | . . . . . Kicked . | . . . . . Crushed . | . . . . . Highest Temperature 70 | . 70 . . 4 Average Temperature 27 | . 28 . . 2 Received Heat Transfer 267 | . 93 126 9 39 Siege Activations . | . . . . . Robots Corrupted . | . . . . . Combat Hostiles . | . . . . . Parts Fried . | . . . . . Impact Corruptions . | . . . . . Robots Melted . | . . . . . Combat Hostiles . | . . . . . Parts Melted . | . . . . . Heat Transferred . | . . . . . Parts Sabotaged . | . . . . . Parts Stolen . | . . . . . Parts Stripped . | . . . . . Power Chain Reactions . | . . . . . Missiles Intercepted . | . . . . . Alert | -11 -10 -10 -9 -9 ------- Run | Scr Mat Min Mat Sto Peak Influence 212 | . 212 75 96 187 Average Influence 55 | . 95 18 71 92 Maximum Alert Level 1 | . 1 . . . Low Security (%) 99 | 100 99 100 100 100 Level 1 . | . . . . . Level 2 . | . . . . . Level 3 . | . . . . . Level 4 . | . . . . . Level 5 . | . . . . . High Security . | . . . . . Max Security . | . . . . . Squads Dispatched 4 | . 2 . . 2 Investigation . | . . . . . Extermination . | . . . . . Reinforcement 4 | . 2 . . 2 Assault . | . . . . . Garrison . | . . . . . Intercept . | . . . . . Construction Impeded . | . . . . . Haulers Reinforced . | . . . . . Stealth | -11 -10 -10 -9 -9 --------- Run | Scr Mat Min Mat Sto Distress Signals 2 | . . . 1 1 Communications Jammed . | . . . . . Distress Signals . | . . . . . Times Spotted 37 | . 16 9 6 6 Peak Tracking Total 6 | . 6 4 6 5 Tactical Retreats 4 | . 1 3 . . Traps | -11 -10 -10 -9 -9 ------- Run | Scr Mat Min Mat Sto Traps Triggered 1 | . . . 1 . Indirectly . | . . . . . Trap Hack Attempts . | . . . . . Triggered . | . . . . . Disarmed . | . . . . . Reprogrammed . | . . . . . Reused . | . . . . . Traps Extracted . | . . . . . Installed . | . . . . . Triggered . | . . . . . Machines | -11 -10 -10 -9 -9 ---------- Run | Scr Mat Min Mat Sto Machines Disabled 3 | . . . . 3 Max in Single Turn 1 | . . . . 1 Machines Sabotaged . | . . . . . Garrisons Compromised . | . . . . . Overloaded Fab Kills . | . . . . . Fab Network Shutdowns . | . . . . . Hacking | -11 -10 -10 -9 -9 --------- Run | Scr Mat Min Mat Sto Machines Accessed 4 | . 1 . 1 2 Terminals 4 | . 1 . 1 2 Fabricators . | . . . . . Repair Stations . | . . . . . Recycling Units . | . . . . . Scanalyzers . | . . . . . Garrison Access . | . . . . . Total Hacks 8 | . 3 . 2 3 Successful 3 | . . . 1 2 Failed 5 | . 3 . 1 1 Catastrophic 1 | . 1 . . . Database Lockouts . | . . . . . Manual 6 | . 3 . 3 . Terminals 8 | . 3 . 2 3 Fabricators . | . . . . . Repair Stations . | . . . . . Recycling Units . | . . . . . Scanalyzers . | . . . . . Garrison Access . | . . . . . Terminal Hacks 3 | . . . 1 2 Part Schematic 1 | . . . 1 . Open Door 1 | . . . . 1 Zone Layout 1 | . . . . 1 Fabricator Hacks . | . . . . . Repair Station Hacks . | . . . . . Recycling Unit Hacks . | . . . . . Scanalyzer . | . . . . . Garrison Access Hacks . | . . . . . Unauthorized Hacks . | . . . . . Terminals . | . . . . . Fabricators . | . . . . . Repair Stations . | . . . . . Recycling Units . | . . . . . Scanalyzers . | . . . . . Garrison Access . | . . . . . Data Cores Recovered 1 | . 1 . . . Used . | . . . . . Hacking Detections 3 | . 1 . 1 1 Full Trace Events . | . . . . . Feedback Events . | . . . . . Feedback Blocked . | . . . . . Robot Schematics Acquired . | . . . . . Robots Built . | . . . . . Matter . | . . . . . Time . | . . . . . Total Robot Build Rating . | . . . . . Part Schematics Acquired 1 | . . . 1 . Parts Built . | . . . . . Matter . | . . . . . Time . | . . . . . Total Part Build Rating . | . . . . . Parts Repaired . | . . . . . Time . | . . . . . Parts Recycled . | . . . . . Recycled Matter . | . . . . . Retrieved Matter . | . . . . . Retrieved Components . | . . . . . Parts Scanalyzed . | . . . . . Part Schematics Acquired . | . . . . . Parts Damaged . | . . . . . Bothacking | -11 -10 -10 -9 -9 ------------ Run | Scr Mat Min Mat Sto Used RIF Installer . | . . . . . Robots Hacked . | . . . . . Non-combat . | . . . . . Combat . | . . . . . Robot Hacks Applied . | . . . . . Relay Couplers Released . | . . . . . Robots Rewired . | . . . . . Allies Hacked . | . . . . . Hacks Repelled . | . . . . . Allies | -11 -10 -10 -9 -9 -------- Run | Scr Mat Min Mat Sto Total Allies . | . . . . . Largest Group . | . . . . . Highest-Rated Group . | . . . . . Highest-Rated Ally . | . . . . . Total Orders . | . . . . . Ally Attacks . | . . . . . Total Damage . | . . . . . Kills . | . . . . . Allies Corrupted . | . . . . . Allies Melted . | . . . . . Intel | -11 -10 -10 -9 -9 ------- Run | Scr Mat Min Mat Sto Robot Analysis Total . | . . . . . Derelict Logs Recovered 2 | . . 2 . . Drone Launches . | . . . . . Drone Recoveries . | . . . . . Exploration | -11 -10 -10 -9 -9 ------------- Run | Scr Mat Min Mat Sto Turns Passed 1066 | 60 413 448 64 81 Spaces Moved 1207 | 53 381 522 116 135 Core 26 | 18 . 8 . . Treads . | . . . . . Legs 227 | 35 156 36 . . Wheels . | . . . . . Hover 674 | . 225 449 . . Flight 280 | . . 29 116 135 Fastest Speed 37 | 50 56 37 37 37 Average Speed 64 | 96 82 59 37 42 Slowest Speed 120 | 120 120 120 37 117 Overloaded Moves . | . . . . . Propulsion Burnouts . | . . . . . Robots Hopped 5 | . . 2 2 1 Cave-ins Triggered . | . . . . . Exploration Rate (%) 35 | 4 51 82 12 30 Regions Visited 4 Branch Regions 2 Pre-discovered Areas 1 | . . 1 . . Known Exits Taken 3 | . 1 1 1 . Unknown Exits Taken 1 | 1 . . . . Scrap Searched 2 | . . 2 . . Spaces Dug . | . . . . . Terrain Destroyed 75 | . . . . 75 Melee . | . . . . . Projectile . | . . . . . AOE 75 | . . . . 75 Actions | -11 -10 -10 -9 -9 --------- Run | Scr Mat Min Mat Sto Total 1398 | 62 438 617 134 147 Wait 91 | . 5 68 18 . Move 1195 | 52 380 518 112 133 Hop 3 | . . 1 1 1 Pick Up 22 | 5 11 5 1 . Fast Attach . | . . . . . Attach 21 | 5 8 4 2 2 Detach 3 | . 2 . . 1 Swap 1 | . 1 . . . Drop 7 | . 6 1 . . Fire 31 | . 21 . . 10 Melee 24 | . 4 20 . . Ram . | . . . . . Kick . | . . . . . Crush . | . . . . . Escape Stasis . | . . . . . Rewire . | . . . . . Trap . | . . . . . Miscellaneous . | . . . . . Route ------- -11/Scrapyard -10/Materials -10/Mines -9/Materials -9/Storage History --------- Turn | Location | Event 4 | -11/Scrapyard | Discovered new exit (range 15) 61 | -11/Scrapyard | Entered Materials 335 | -10/Materials | Build established: Mutant 430 | -10/Materials | Discovered new exit (range 16) 473 | -10/Materials | Identified exit to Mines 474 | -10/Materials | Entered Mines 475 | -10/Mines | Learned location of Storage (-9) 527 | -10/Mines | Learned Materials garrison access intel 551 | -10/Mines | Learned Materials stockpile data 590 | -10/Mines | Received a Rocket Launcher from a helpful Derelict 849 | -10/Mines | Lost 4 parts (1p2n1w) 917 | -10/Mines | Discovered new exit (range 13) 922 | -10/Mines | Identified exit to Materials 922 | -10/Mines | Entered Materials 922 | -9/Materials | Evolved 2 slots: Propulsion x1, Utility x1 939 | -9/Materials | Discovered new exit (range 13) 986 | -9/Materials | Identified exit to Storage 986 | -9/Materials | Entered Storage 1067 | -9/Storage | Self-destructed Last Messages --------------- 01040_ O-16 Technician: "IFF HANDSHAKE FAILED. SECURING TERMINAL." 01044_ ALERT: Hostiles spotted, dispatching reinforcements to Terminal S011. 01046_ G-34 Mercenary destroyed. 01048_ The unstable cave ceiling collapses. 01048_ G-34 Mercenary destroyed. 01053_ U-05 Engineer lays Concrete. 01055_ R-06 Scavenger collects Sml. Laser. 01056_ U-05 Engineer builds a Wall. 01058_ R-06 Scavenger collects Aluminum Leg. 01059_ Recycling Unit disabled. 01059_ Spread Laser tumbles out of recycling unit. 01059_ Reclamation Unit tumbles out of recycling unit. 01060_ The unstable cave ceiling collapses. 01060_ U-05 Engineer lays Concrete. 01061_ U-05 Engineer builds a Wall. 01062_ Flight Unit destroyed. 01063_ R-06 Scavenger collects Heat Sink. 01065_ Lgt. Ion Engine destroyed. 01065_ U-05 Engineer builds a Wall. Map ----- +----------------------------------------------------+ | #### #??????? #####??????????????????????????????? | | ???# #??????? #??????????????????????????????? | | ???# #??????? #??????????????????????????????? | | ???# ######## #??????????????????????????????? | | #### #???## ??????????????????????? | | ! #/##+##### #???## ??????????????????????? | | ! # #?# #???#####??????????????????????? | | ! + """" #?# #???#####??????????????????????? | | #### """" ### ########???????????????????????? | | ???# """" ## # #???????????????????????? | | ???# """" ## # #???????????????????????? | | ???# ## # #???????????????????????? | | ####+####### + #???????????????????????? | | # #?##### # #???????????????????????? | | # ### # # ## #???????????????????????? | | # #"T ######?#####???????????????????????? | | + #????# #???????????????????????????? | | # ##???########???????????????????????? | | # " ""#????# #???????????????????????? | | #### T"#????# #???????????????????????? | | ""#????# #???????????????????????? | | ##????# #?###?#?????????????????? | | ##?????# ## # #?????????????????? | | ####+## #??????# ##????????????????? | | # ########### ####???????????????? | | # @ a u%o + #????????? | | #############+## # r# # #?????????????? | | """ #???????# # # #?????????????? | | """ #???????# """"#### * #?????????????? | | """ #???????# """"#??# ####?????????????? | | #######???????# """"#?? Y" #????????????????? | | ??????????????# """"#?? #???????????????? | | ??????????????# #?? ##???????????????? | | ??????????????########?? Y #????????????????? | | ???????????????????????? #????????????????? | | | | | | | | | | | | | | | | | | | | | | | | | | | | | | | +----------------------------------------------------+ Best States ------------- Heat Dissipation 28 Energy Generation 10 Energy Capacity 125 Matter Stores 300 Matter Capacity 300 Sight Range 16 Robot Scan Range 10 Terrain Scan Density 10 ECM Strength 1 Propulsion Shielding 33 Evasion (%) 62 Item Schematics ----------------- Datajack | -9/Materials | Hacked Robot Schematics ------------------ None Fabricated ------------ Nothing Alien Tech Used ----------------- None Achievements -------------- None Challenges ------------ None Game ------ Seed FusionNullGuard Manual? 0 Play Time 00:18:38 Cumulative 10.6 hours Start 2020.05.21 @ 17:53:26 End 2020.05.21 @ 18:10:16 Sessions 1 Manual Loads 0 Difficulty Rogue Special Mode None Game No. 23 Rogue 7 Adventurer 16 Explorer 0 Win Type - Total 0 Types 0/0/0/0/0/0/0 Lore% 7 Gallery% 17 Achievement% 14 Wizard Run 0 Options --------- ASCII 0 Keyboard 1 Movement Arrows Keybinds 0 Fullscreen 2 Font 18/CogNarrow Map View 76x50 Tactical HUD 1 Map Filters NONE Filters NONE Steam 0 RUN: 594945eb-ec06-423b-b4a5-db296808f391